bitfinex-derivatives/quotes_SOLF0:USTF0_20241021
["timestamp","ask_amount","ask_price","bid_price","bid_amount"]
[1729523699512,2.99307758,163.97,163.96,3.0504]
[1729523699720,3.0499,164.0,163.91,6.9]
[1729523699910,6.9,164.06,163.91,6.9]
[1729523700110,6.9,164.06,163.95,3.0506]
[1729523700511,3.0502,163.98,163.94,3.0509]
[1729523700707,2.99521506,163.98,163.91,6.9]
[1729523700909,6.9,164.06,163.91,6.9]
[1729523701112,3.0498,164.0,163.91,6.9]
[1729523701315,3.01200952,163.99,163.91,6.9]
[1729523701510,6.9,164.06,163.91,6.9]
[1729523701915,3.9283,164.07,163.91,6.9]
[1729523702318,3.049,164.05,163.91,6.9]
[1729523702521,3.9283,164.07,163.91,6.9]
[1729523702924,3.0491,164.04,163.91,6.9]
[1729523703315,3.0495,164.02,163.97,3.0503]
[1729523703517,3.06970047,164.02,163.97,3.0503]
[1729523703717,3.9283,164.07,163.97,3.0503]
[1729523703918,3.0491,164.04,163.97,3.0503]
[1729523704220,3.9283,164.07,163.97,3.0503]
[1729523704421,3.0491,164.04,163.98,3.0501]
[1729523704922,3.9283,164.07,163.99,3.0498]
[1729523705119,3.049,164.05,163.99,3.0498]
[1729523706025,3.049,164.05,164.0,3.0498]
[1729523706415,3.0489,164.05,164.0,3.0498]
[1729523706618,3.9283,164.07,164.01,3.0495]
[1729523707015,3.0488,164.06,164.01,3.0495]
[1729523707226,6.9,164.1,163.94,6.9]
[1729523707420,2.7051,164.05,163.88,1.2755]
[1729523707625,5.79842202,164.05,163.88,8.1755]
[1729523707822,6.9,164.04,163.9,3.0515]
[1729523708322,6.9,164.04,163.89,6.9]
[1729523708523,9.94570427,164.04,163.89,6.9]
[1729523709016,9.94570427,164.04,163.96,3.0505]
[1729523709218,3.0496,164.01,163.89,6.9]
[1729523709526,9.6051,164.05,163.89,6.9]
[1729523709726,12.67458543,164.05,163.89,6.9]
[1729523709925,3.0497,164.01,163.89,6.9]
[1729523710923,3.0497,164.01,163.97,3.0503]
[1729523712029,12.67458543,164.05,163.94,6.9]
[1729523712225,3.0491,164.04,164.0,3.0498]
[1729523712531,1.2899,164.09,163.95,3.7967]
[1729523713029,1.2899,164.09,164.03,3.0492]
[1729523713218,2.99478913,164.09,164.01,6.7]
[1729523713419,1.3354,164.11,164.01,6.7]
[1729523713733,6.7,164.15,164.01,6.7]
[1729523714138,3.0479,164.11,164.06,3.0485]
[1729523714327,3.02287482,164.1,164.06,3.0485]
[1729523715035,6.07077482,164.1,164.01,6.7]
[1729523715330,7.9649,164.16,164.01,6.7]
[1729523715726,7.9649,164.16,164.03,3.0491]
[1729523715927,7.9649,164.16,164.03,6.7]
[1729523716328,7.9649,164.16,164.02,6.7]
[1729523716530,3.048,164.1,164.0,6.7]
[1729523716725,2.5958,164.09,164.0,9.7498]
[1729523717026,2.5958,164.09,163.99,6.7]
[1729523717333,2.5958,164.09,163.98,3.05]
[1729523717535,1.3022,164.08,163.97,6.7]
[1729523717933,1.3142,164.09,163.97,6.7]
[1729523718130,3.12200982,164.1,163.97,6.7]
[1729523718326,3.0483,164.08,163.97,6.7]
[1729523718528,3.01700671,164.08,163.97,6.7]
[1729523718725,6.7,164.13,163.97,6.7]
[1729523718928,3.0482,164.09,163.97,6.7]
[1729523719138,3.06888201,164.08,164.03,3.0492]
[1729523719634,6.11728201,164.08,164.03,3.0492]
[1729523719824,6.7,164.13,164.0,6.7]
[1729523720032,6.7,164.13,163.99,6.7]
[1729523720737,3.0494,164.03,163.99,6.7]
[1729523720933,6.0557265,164.03,163.99,6.7]
[1729523721333,3.0063265,164.03,163.99,6.7]
[1729523721532,3.0492,164.04,163.99,6.7]
[1729523722035,6.14794342,164.04,163.99,9.7499]
[1729523722332,3.09874342,164.04,163.99,6.7]
[1729523722531,6.7,164.07,163.99,6.7]
[1729523722735,6.7,164.07,164.01,3.0494]
[1729523723134,9.76761254,164.07,164.01,3.0494]
[1729523723928,3.0487,164.06,163.99,6.7]
[1729523724127,3.06761254,164.07,163.99,6.7]
[1729523724330,2.597,164.14,163.99,6.7]
[1729523724331,6.7,164.12,163.99,6.7]
[1729523724637,6.7,164.12,164.03,3.0491]
[1729523724839,3.0484,164.08,164.03,3.0491]
[1729523725039,6.07681761,164.08,164.03,3.0491]
[1729523725337,6.07681761,164.08,164.04,3.049]
[1729523725646,3.0482,164.09,163.99,6.7]
[1729523725937,3.03085865,164.09,163.99,6.7]
[1729523726241,3.0486,164.07,163.99,6.7]
[1729523726936,3.0486,164.07,164.03,3.0491]
[1729523727338,3.0486,164.07,163.99,6.7]
[1729523727736,3.0486,164.07,164.01,3.0495]
[1729523727936,3.0486,164.07,163.99,6.7]
[1729523728340,3.0487,164.06,163.99,6.7]
[1729523729137,3.0487,164.06,164.03,3.0491]
[1729523729440,3.11598999,164.09,163.99,6.7]
[1729523729739,3.0486,164.07,164.04,3.049]
[1729523730131,3.0487,164.06,164.04,3.049]
[1729523730342,3.0487,164.06,164.03,3.0492]
[1729523730739,3.0487,164.06,164.01,6.7]
[1729523731637,3.0487,164.06,164.03,3.0491]
[1729523732340,3.0488,164.06,164.02,3.0493]
[1729523732649,3.0488,164.06,164.0,6.7]
[1729523732838,2.99314505,164.08,164.02,3.0494]
[1729523733039,2.99314505,164.08,164.03,1.2539]
[1729523733234,9.297,164.14,164.03,1.2539]
[1729523733641,3.0483,164.08,164.05,3.0487]
[1729523734143,3.0482,164.09,164.06,3.0485]
[1729523734436,3.04184334,164.08,164.03,1.2539]
[1729523734642,9.297,164.14,164.03,1.2539]
[1729523734843,3.0485,164.07,164.03,1.2539]
[1729523735745,6.09604082,164.08,164.03,1.2539]
[1729523736148,6.09604082,164.08,164.05,3.0488]
[1729523736443,3.0486,164.07,164.03,1.2539]
[1729523737345,3.0486,164.07,164.04,3.049]
[1729523737546,3.0486,164.07,164.03,1.2539]
[1729523738334,3.10286939,164.08,163.95,2.5217]
[1729523738539,6.7,164.09,163.96,1.3409]
[1729523738847,3.9336,164.07,163.96,1.3409]
[1729523739446,3.0494,164.02,163.96,1.3409]
[1729523739645,2.6077,164.07,163.96,1.3409]
[1729523740145,3.0491,164.04,164.01,3.0495]
[1729523741241,3.00901085,164.09,163.96,1.3409]
[1729523741443,3.0489,164.05,164.02,3.0493]
[1729523741748,3.11655396,164.04,164.02,3.0493]
[1729523742143,3.11655396,164.04,163.96,1.3409]
[1729523742341,6.7,164.1,164.01,3.0496]
[1729523742540,6.7,164.1,163.96,1.3409]
[1729523742843,3.0495,164.02,163.96,1.3409]
[1729523743444,3.0498,164.0,163.96,1.3409]
[1729523743647,3.06894969,164.0,163.96,1.3409]
[1729523743841,6.4,164.05,163.96,1.3409]
[1729523744040,3.0497,164.01,163.98,3.0501]
[1729523744245,3.01780617,164.0,163.98,3.0501]
[1729523744450,6.4,164.05,163.98,3.0501]
[1729523744648,6.4,164.05,163.95,2.5217]
[1729523744846,3.0494,164.02,163.99,3.0498]
[1729523745840,3.0495,164.02,163.94,3.0508]
[1729523746042,3.8254,164.04,163.9,2.641]
[1729523746248,3.8254,164.04,163.82,65.92]
[1729523746546,3.0515,163.92,163.87,3.0521]
[1729523746746,6.4,163.94,163.83,2.5528]
[1729523746945,3.0515,163.91,163.86,3.0523]
[1729523747141,9.39246954,163.94,163.83,2.5528]
[1729523747344,2.5781,163.93,163.83,2.5528]
[1729523747543,3.0519,163.89,163.83,2.5528]
[1729523748151,3.0517,163.9,163.83,2.5528]
[1729523748854,3.0518,163.89,163.85,3.0525]
[1729523749647,2.5781,163.93,163.84,3.0526]
[1729523749857,2.5781,163.93,163.83,2.5528]
[1729523750457,2.5781,163.93,163.75,6.4]
[1729523750763,2.5781,163.93,163.75,8.9234]
[1729523750948,3.0527,163.85,163.81,3.0533]
[1729523751257,3.06407555,163.85,163.75,8.9234]
[1729523751557,6.4,163.87,163.75,8.9234]
[1729523751746,6.4,163.87,163.75,2.5234]
[1729523752051,6.4,163.87,163.73,6.4]
[1729523752052,3.0537,163.8,163.73,6.4]
[1729523752247,2.99320162,163.79,163.73,6.4]
[1729523752648,3.0535,163.81,163.77,3.0539]
[1729523752855,3.08698738,163.8,163.77,3.0539]
[1729523753746,3.054,163.78,163.74,3.0545]
[1729523753953,1.362,163.85,163.69,10.2708]
[1729523754157,6.4,163.84,163.69,10.2708]
[1729523754351,6.4,163.84,163.69,3.8708]
[1729523754658,65.96,163.83,163.68,176.9096755]
[1729523754957,65.96,163.83,163.62,13.31249679]
[1729523755549,65.96,163.83,163.69,3.0555]
[1729523756151,3.0548,163.74,163.69,3.0555]
[1729523756354,6.4,163.73,163.69,3.0555]
[1729523756555,6.4,163.73,163.62,3.8965]
[1729523756758,3.0555,163.7,163.62,3.8965]
[1729523756956,6.4,163.73,163.62,3.8965]
[1729523757150,10.3961,163.73,163.64,3.0565]
[1729523757351,3.0557,163.69,163.64,3.0565]
[1729523757560,3.0557,163.69,163.64,3.0563]
[1729523758058,3.9961,163.73,163.62,3.8965]
[1729523758059,6.42,163.71,163.62,3.8965]
[1729523758253,6.42,163.71,163.66,3.056]
[1729523758451,3.9961,163.73,163.66,3.056]
[1729523758652,12.1062,163.73,163.69,3.0555]
[1729523758854,12.1062,163.73,163.62,6.92400535]
[1729523758855,9.0513,163.73,163.62,3.8965]
[1729523759061,12.57422643,163.74,163.62,3.8965]
[1729523759260,9.51942643,163.74,163.62,6.92859247]
[1729523759655,3.0551,163.72,163.62,3.8965]
[1729523760854,3.0551,163.72,163.68,3.0557]
[1729523762363,3.09942643,163.74,163.7,3.0554]
[1729523762658,6.42,163.75,163.7,3.0554]
[1729523763053,3.0548,163.74,163.7,3.0554]
[1729523763254,9.51104135,163.75,163.69,3.0555]
[1729523763454,9.51104135,163.75,163.62,6.90834661]
[1729523763657,3.0551,163.72,163.62,6.90834661]
[1729523763855,9.51104135,163.75,163.62,3.8965]
[1729523764158,9.51104135,163.75,163.62,2.5341]
[1729523764159,1.2809,163.74,163.62,2.5341]
[1729523764561,2.6624,163.73,163.62,2.5341]
[1729523764958,2.6624,163.73,163.67,3.0558]
[1729523765259,2.6624,163.73,163.62,2.5341]
[1729523765564,3.0554,163.7,163.66,3.0561]
[1729523766154,2.6624,163.73,163.62,2.5341]
[1729523766357,3.0553,163.71,163.68,3.0557]
[1729523766757,6.08,163.72,163.68,3.0557]
[1729523766957,9.1351,163.72,163.68,3.0557]
[1729523767360,6.08,163.72,163.63,1.289]
[1729523767564,3.0553,163.71,163.68,3.0556]
[1729523767869,3.09104135,163.75,163.65,6.08]
[1729523768064,3.9316,163.82,163.65,6.08]
[1729523768365,6.08,163.81,163.66,3.08358559]
[1729523768564,3.0541,163.78,163.74,3.0545]
[1729523768760,3.0541,163.78,163.66,3.08358559]
[1729523768959,3.9316,163.82,163.65,6.08]
[1729523769161,3.9316,163.82,163.74,3.0545]
[1729523769162,3.0539,163.78,163.74,3.0545]
[1729523769363,3.0539,163.78,163.65,9.16908981]
[1729523769364,3.9316,163.82,163.65,3.08908981]
[1729523769568,6.08,163.81,163.66,6.08]
[1729523769861,3.9316,163.82,163.67,6.1117]
[1729523770057,3.9316,163.82,163.67,3.11857048]
[1729523770261,3.9316,163.82,163.66,6.08]
[1729523770858,3.054,163.78,163.74,3.0545]
[1729523771367,3.054,163.78,163.67,3.06691524]
[1729523771667,3.054,163.78,163.75,3.0544]
[1729523771963,3.0541,163.77,163.66,6.08]
[1729523772164,3.0541,163.77,163.66,9.13988524]
[1729523772757,3.0543,163.76,163.69,3.0554]
[1729523772960,6.08,163.79,163.66,6.08]
[1729523773565,3.0546,163.75,163.72,3.055]
[1729523773764,6.15730314,163.75,163.72,3.055]
[1729523773966,3.0546,163.75,163.72,3.055]
[1729523774664,3.0548,163.74,163.66,6.08]
[1729523775269,3.0549,163.73,163.7,3.0554]
[1729523775474,6.08,163.77,163.65,6.08]
[1729523775671,6.08,163.77,163.63,7.369]
[1729523776768,3.9316,163.82,163.63,7.369]
[1729523776973,6.08,163.81,163.63,7.369]
[1729523777166,3.0544,163.76,163.73,3.0548]
[1729523777365,3.02095614,163.75,163.73,3.0548]
[1729523777761,6.08,163.81,163.63,7.369]
[1729523777970,3.9316,163.82,163.63,7.369]
[1729523777971,6.08,163.8,163.63,7.369]
[1729523778167,3.9316,163.82,163.63,7.369]
[1729523778375,3.0537,163.8,163.76,3.0541]
[1729523778570,3.0537,163.8,163.71,6.08]
[1729523779364,10.0116,163.82,163.71,6.08]
[1729523780975,3.0538,163.79,163.76,3.0541]
[1729523782979,3.0543,163.76,163.71,6.08]
[1729523783183,6.08,163.81,163.71,6.08]
[1729523783375,6.08,163.81,163.66,6.1121]
[1729523783578,3.0539,163.78,163.75,3.0543]
[1729523783979,3.0539,163.78,163.67,6.08]
[1729523784175,3.0539,163.78,163.76,3.0543]
[1729523784374,3.0539,163.78,163.67,6.08]
[1729523784981,6.08,163.81,163.67,6.08]
[1729523785177,6.08,163.81,163.68,6.08]
[1729523785379,6.08,163.81,163.72,3.055]
[1729523785587,3.0546,163.75,163.72,3.055]
[1729523785790,6.05476071,163.75,163.72,3.055]
[1729523785983,6.08,163.81,163.68,6.08]
[1729523786283,3.0543,163.77,163.68,6.08]
[1729523786786,3.0543,163.77,163.74,3.0545]
[1729523787082,6.08,163.81,163.68,6.08]
[1729523787484,3.0537,163.79,163.68,6.08]
[1729523787685,6.08,163.81,163.68,6.08]
[1729523787879,6.08,163.81,163.76,3.0543]
[1729523788679,3.0538,163.79,163.76,3.0543]
[1729523789989,3.0538,163.79,163.68,6.08]
[1729523790193,3.0537,163.8,163.77,3.0541]
[1729523791783,3.0534,163.81,163.78,3.0538]
[1729523792092,3.10584409,163.85,163.74,6.08]
[1729523792388,7.3944,163.87,163.75,6.08]
[1729523792586,7.3944,163.87,163.7,1.3192]
[1729523792587,7.3944,163.87,163.72,6.08]
[1729523794186,3.0535,163.8,163.77,3.054]
[1729523794382,6.05769502,163.8,163.77,3.054]
[1729523794586,3.00419502,163.8,163.72,6.08]
[1729523794783,3.0535,163.81,163.72,6.08]
[1729523794983,3.01550277,163.81,163.72,6.08]
[1729523795184,6.08,163.82,163.72,6.08]
[1729523795584,3.0535,163.8,163.72,6.08]
[1729523796088,3.00725117,163.82,163.8,3.0535]
[1729523796390,3.00725117,163.82,163.72,6.08]
[1729523796691,3.0534,163.81,163.78,3.0537]
[1729523796890,3.0534,163.81,163.72,6.08]
[1729523797188,3.00725117,163.82,163.8,3.0535]
[1729523797385,5.94,163.85,163.8,3.0535]
[1729523797987,9.0420608,163.85,163.8,3.0535]
[1729523798390,3.0531,163.83,163.8,3.0535]
[1729523798989,9.0420608,163.85,163.72,6.08]
[1729523799189,9.0420608,163.85,163.81,3.0533]
[1729523799589,9.0420608,163.85,163.72,6.08]
[1729523799590,3.0531,163.83,163.75,3.0543]
[1729523799791,9.0420608,163.85,163.72,6.08]
[1729523800089,3.1020608,163.85,163.72,6.08]
[1729523800289,1.3144,163.87,163.72,6.08]
[1729523800694,4.3667,163.87,163.84,3.0527]
[1729523801796,1.3144,163.87,163.84,3.0527]
[1729523801990,3.0524,163.86,163.84,3.0527]
[1729523802189,1.3144,163.87,163.82,3.0531]
[1729523802387,3.0527,163.85,163.82,3.0531]
[1729523802589,6.05702129,163.85,163.82,3.0531]
[1729523803798,3.0532,163.82,163.8,3.0535]
[1729523805288,3.00432129,163.85,163.76,8.5976]
[1729523805598,1.3144,163.87,163.76,8.5976]
[1729523805791,3.0527,163.85,163.82,3.0531]
[1729523805992,3.06005424,163.85,163.82,3.0531]
[1729523806292,3.0527,163.85,163.82,3.0531]
[1729523806498,6.15736858,163.85,163.82,3.0531]
[1729523808090,3.0529,163.84,163.81,3.0533]
[1729523808295,1.3144,163.87,163.76,8.5976]
[1729523808698,3.0533,163.82,163.79,3.0536]
[1729523808897,2.99851075,163.81,163.79,3.0536]
[1729523810093,1.3144,163.87,163.73,5.94]
[1729523810094,5.94,163.84,163.73,5.94]
[1729523810298,1.2673,163.83,163.73,5.94]
[1729523810694,1.2673,163.83,163.78,3.0538]
[1729523810695,3.0534,163.81,163.78,3.0538]
[1729523811793,3.0534,163.81,163.73,5.94]
[1729523812003,3.0532,163.82,163.8,3.0535]
[1729523812698,3.053,163.83,163.8,3.0535]
[1729523813200,8.97793267,163.84,163.8,3.0535]
[1729523813397,8.97793267,163.84,163.79,3.0536]
[1729523813702,3.03793267,163.84,163.73,5.94]
[1729523814001,3.0528,163.84,163.81,3.0532]
[1729523814297,3.10290865,163.84,163.73,5.94]
[1729523814504,3.0526,163.85,163.74,6.1092]
[1729523814695,6.09010705,163.85,163.82,3.053]
[1729523815302,3.0529,163.84,163.81,3.0533]
[1729523815497,3.03750705,163.85,163.74,6.1092]
[1729523815698,7.2544,163.87,163.74,6.1092]
[1729523816102,3.0531,163.83,163.8,3.0534]
[1729523816300,3.05638731,163.82,163.8,3.0534]
[1729523817097,3.05638731,163.82,163.74,6.1092]
[1729523818406,3.05638731,163.82,163.8,3.0533]
[1729523818700,3.05638731,163.82,163.74,6.1092]
[1729523819094,3.05638731,163.82,163.76,3.0542]
[1729523819296,3.05638731,163.82,163.74,6.1092]
[1729523819497,7.2544,163.87,163.71,2.5787]
[1729523819697,5.94,163.86,163.71,2.5787]
[1729523820096,3.0532,163.82,163.71,2.5787]
[1729523820293,8.4838,163.81,163.74,3.0545]
[1729523820696,3.0544,163.76,163.65,6.1124]
[1729523820894,3.0544,163.76,163.73,3.0547]
[1729523821300,3.0544,163.76,163.74,3.0546]
[1729523821506,3.0541,163.77,163.74,3.0546]
[1729523821899,1.3519,163.8,163.66,8.5454]
[1729523822204,3.08236141,163.82,163.66,8.5454]
[1729523822399,5.94,163.87,163.67,1.52835836]
[1729523822602,5.94,163.87,163.7,6.1106]
[1729523822902,3.0531,163.83,163.71,7.1772]
[1729523823106,3.0004051,163.83,163.8,3.0534]
[1729523823299,5.94,163.87,163.71,10.25587123]
[1729523823600,3.0531,163.83,163.71,10.25587123]
[1729523823806,3.00621392,163.83,163.71,10.25587123]
[1729523824011,3.0528,163.84,163.81,3.0532]
[1729523824198,6.04892493,163.84,163.81,3.0532]
[1729523824705,2.99612493,163.84,163.73,2.5771]
[1729523824907,3.8537,163.88,163.76,5.94]
[1729523824908,3.0525,163.86,163.76,5.94]
[1729523825301,3.0525,163.86,163.83,3.0529]
[1729523825703,3.0526,163.85,163.83,3.0529]
[1729523825899,6.05832823,163.85,163.83,3.0529]
[1729523826100,3.00572823,163.85,163.76,5.94]
[1729523826402,3.0526,163.85,163.82,3.0531]
[1729523826608,6.1509203,163.85,163.76,5.94]
[1729523826808,3.0524,163.86,163.83,3.0529]
[1729523828213,5.94,163.87,163.76,5.94]
[1729523829008,5.94,163.87,163.79,3.0536]
[1729523829708,5.94,163.87,163.73,2.5771]
[1729523830107,3.0538,163.79,163.76,3.0542]
[1729523830306,2.98654016,163.79,163.69,5.94]
[1729523830506,5.94,163.8,163.69,5.94]
[1729523831103,8.98428503,163.8,163.69,5.94]
[1729523831417,3.0538,163.79,163.69,5.94]
[1729523831606,3.04428503,163.8,163.69,5.94]
[1729523831806,5.94,163.81,163.69,5.94]
[1729523832009,3.10824747,163.8,163.79,3.0535]
[1729523832914,3.8537,163.88,163.71,3.11986252]
[1729523833112,5.94,163.87,163.73,6.1095]
[1729523833315,5.94,163.87,163.74,9.01309668]
[1729523833512,5.94,163.87,163.84,3.0526]
[1729523833815,5.94,163.87,163.74,5.94]
[1729523834011,5.94,163.87,163.75,3.00279508]
[1729523834217,8.9923,163.87,163.84,3.0526]
[1729523835115,3.0526,163.85,163.76,6.1086]
[1729523835311,3.02424094,163.85,163.74,5.94]
[1729523835519,5.94,163.87,163.74,5.94]
[1729523836114,3.0529,163.84,163.82,3.0531]
[1729523836417,3.09114757,163.83,163.82,3.0531]
[1729523837513,3.0525,163.86,163.83,3.0529]
[1729523837915,3.8537,163.88,163.74,5.94]
[1729523838216,5.94,163.87,163.84,3.0527]
[1729523838516,8.9924,163.87,163.84,3.0527]
[1729523839315,5.94,163.87,163.76,6.1085]
[1729523840019,3.0527,163.85,163.82,3.053]
[1729523840208,6.05634975,163.85,163.82,3.053]
[1729523840616,6.05634975,163.85,163.83,3.053]
[1729523841917,3.00364975,163.85,163.74,5.94]
[1729523842121,5.94,163.87,163.77,6.1082]
[1729523842314,1.2319,163.88,163.77,6.1082]
[1729523842513,3.0522,163.87,163.8,3.0535]
[1729523842720,3.0522,163.87,163.77,6.1082]
[1729523844431,3.0522,163.87,163.84,3.0527]
[1729523844620,10.2241,163.88,163.77,6.1082]
[1729523845023,4.2841,163.88,163.77,6.1082]
[1729523845224,3.0522,163.87,163.85,3.0524]
[1729523849123,1.2985,163.93,163.8,5.94]
[1729523849426,7.2385,163.93,163.81,9.8631]
[1729523849615,3.0514,163.92,163.89,3.0517]
[1729523849823,7.2385,163.93,163.81,9.8631]
[1729523850324,3.0515,163.91,163.88,3.0519]
[1729523851218,7.2385,163.93,163.81,9.8631]
[1729523851522,10.2896,163.93,163.82,6.1063]
[1729523851824,8.9911,163.93,163.9,3.0515]
[1729523852216,8.9908,163.95,163.83,6.1059]
[1729523852416,10.00559038,163.98,163.83,3.07573361]
[1729523852623,10.00559038,163.98,163.81,9.8631]
[1729523852624,5.94,163.97,163.81,9.8631]
[1729523852826,9.00931883,163.97,163.81,9.8631]
[1729523853014,3.0507,163.96,163.93,3.051]
[1729523853726,3.0508,163.95,163.93,3.051]
[1729523854323,3.0507,163.96,163.93,3.051]
[1729523854523,9.00931883,163.97,163.95,3.0506]
[1729523854725,9.00931883,163.97,163.86,5.94]
[1729523855228,3.0507,163.95,163.86,5.94]
[1729523855720,9.00931883,163.97,163.81,3.9231]
[1729523855916,9.00931883,163.97,163.82,5.94]
[1729523856117,9.00931883,163.97,163.86,3.0523]
[1729523856329,3.0513,163.92,163.82,5.94]
[1729523856730,3.0513,163.92,163.89,3.0517]
[1729523857421,9.00931883,163.97,163.82,5.94]
[1729523857621,3.0508,163.95,163.92,3.0511]
[1729523858122,3.06931883,163.97,163.95,3.0507]
[1729523858325,2.5947,164.0,163.88,5.94]
[1729523858524,11.61085669,164.0,163.89,3.8195]
[1729523858724,10.3027,164.0,163.97,3.0503]
[1729523859327,13.39809985,164.0,163.97,3.0503]
[1729523860025,12.08529985,164.0,163.97,3.0503]
[1729523860229,6.14529985,164.0,163.89,3.8195]
[1729523860421,6.14529985,164.0,163.98,3.0501]
[1729523860820,6.14529985,164.0,163.97,3.0503]
[1729523861424,3.09539985,164.0,163.89,3.8195]
[1729523861726,5.92,164.03,163.89,3.8195]
[1729523861921,9.01205664,164.03,163.89,3.8195]
[1729523862120,3.0499,164.0,163.89,3.8195]
[1729523862327,9.01205664,164.03,163.89,3.8195]
[1729523862524,3.0499,164.0,163.97,3.0503]
[1729523863027,9.01205664,164.03,163.86,6.1048]
[1729523863228,9.01205664,164.03,163.85,5.92]
[1729523863631,17.74942331,164.03,163.85,5.92]
[1729523863831,3.0514,163.92,163.89,3.0517]
[1729523864031,6.07245256,163.92,163.89,3.0517]
[1729523865039,6.07245256,163.92,163.9,3.0517]
[1729523865334,3.02105256,163.92,163.9,3.0517]
[1729523865525,3.0512,163.93,163.9,3.0517]
[1729523866131,3.00609081,163.92,163.9,3.0517]
[1729523867033,3.00609081,163.92,163.85,5.92]
[1729523867034,3.0513,163.92,163.89,3.0518]
[1729523867223,3.05910214,163.91,163.85,5.92]
[1729523868025,3.05910214,163.91,163.89,3.0517]
[1729523868425,3.05910214,163.91,163.85,5.92]
[1729523869135,3.0512,163.93,163.9,3.0517]
[1729523869435,6.0534994,163.93,163.9,3.0517]
[1729523871447,6.0534994,163.93,163.83,3.868]
[1729523871448,3.0022994,163.93,163.83,3.868]
[1729523871738,3.0516,163.91,163.88,3.0519]
[1729523872135,3.0514,163.92,163.89,3.0518]
[1729523872830,5.61459401,163.94,163.83,3.868]
[1729523873233,3.0516,163.91,163.88,3.052]
[1729523874234,3.0516,163.91,163.89,3.0518]
[1729523875038,3.0514,163.92,163.89,3.0518]
[1729523875235,5.61459401,163.94,163.83,3.868]
[1729523875538,8.66559401,163.94,163.91,3.0514]
[1729523875738,6.05299401,163.94,163.83,3.868]
[1729523876129,3.00199401,163.94,163.83,3.868]
[1729523876329,8.9706,163.96,163.93,3.0511]
[1729523876732,5.92,163.96,163.93,3.0511]
[1729523876932,5.92,163.96,163.84,6.1054]
[1729523876933,3.0508,163.95,163.92,3.0512]
[1729523877135,5.92,163.96,163.83,3.868]
[1729523877829,3.0516,163.91,163.88,3.0519]
[1729523878037,3.0336345,163.9,163.88,3.0519]
[1729523878235,3.0336345,163.9,163.89,3.0518]
[1729523879339,8.73112279,163.99,163.94,3.0508]
[1729523879340,14.65112279,163.99,163.94,3.0508]
[1729523879533,5.92,163.99,163.85,6.1049]
[1729523879935,1.2375,163.98,163.85,6.1049]
[1729523880443,3.051,163.94,163.91,3.0513]
[1729523880636,6.16121794,163.94,163.91,3.0513]
[1729523880841,3.051,163.94,163.91,3.0513]
[1729523881439,3.10349975,163.94,163.93,3.0511]
[1729523881642,1.2375,163.98,163.93,3.0511]
[1729523881841,1.2375,163.98,163.86,6.1048]
[1729523882052,8.9705,163.97,163.95,3.0507]
[1729523882441,3.0505,163.97,163.87,5.92]
[1729523882747,3.0505,163.97,163.94,3.0508]
[1729523883653,1.2375,163.98,163.87,5.92]
[1729523883850,5.92,163.98,163.96,3.0505]
[1729523884151,5.92,163.98,163.87,5.92]
[1729523884354,5.92,163.98,163.97,3.0504]
[1729523884558,3.0501,163.99,163.97,3.0504]
[1729523885644,5.92,164.0,163.98,3.05]